bitfinex-derivatives/quotes_ETHF0:USTF0_20241230
["timestamp","ask_amount","ask_price","bid_price","bid_amount"]
[1735596295833,3.2078,3328.7,3328.0,3.20723522]
[1735596296025,3.2078,3328.3,3327.9,1.55]
[1735596296226,3.2078,3328.3,3327.5,5.27763522]
[1735596296227,3.2078,3328.3,3327.6,1.55]
[1735596296526,3.2078,3328.3,3327.6,42.35]
[1735596296527,3.50875,3328.3,3327.6,42.35]
[1735596296730,3.2078,3328.3,3327.6,42.35]
[1735596296934,3.2078,3328.3,3327.7,0.30099]
[1735596297127,3.2078,3328.3,3327.6,42.35]
[1735596297128,3.2078,3328.3,3327.6,42.65101]
[1735596297330,3.2078,3328.3,3327.7,0.301]
[1735596297641,3.2078,3328.3,3327.6,42.651]
[1735596298032,3.2078,3328.3,3327.6,42.35]
[1735596298223,3.50875,3328.3,3327.6,42.35]
[1735596298630,3.2078,3328.3,3327.6,42.35]
[1735596299630,3.2078,3328.3,3327.6,41.101]
[1735596300323,3.2078,3327.8,3327.6,40.8]
[1735596301332,2.7311,3329.1,3327.6,40.8]
[1735596301333,3.2078,3329.8,3327.8,0.5]
[1735596301533,3.36474278,3330.3,3329.7,3.20723522]
[1735596301932,3.36474278,3330.1,3330.0,0.30079]
[1735596302841,4.52110143,3330.3,3330.2,0.30077]
[1735596303031,3.91351143,3330.3,3330.2,6.71580522]
[1735596303226,3.2078,3331.9,3331.1,0.30069]
[1735596303643,3.2078,3331.9,3331.2,0.30068]
[1735596303833,4.919,3332.4,3331.7,0.30063]
[1735596303834,3.2078,3332.4,3331.7,0.30063]
[1735596304131,3.2078,3332.4,3331.4,6.41503522]
[1735596304338,3.91351143,3332.7,3331.9,3.20723522]
[1735596304541,3.91351143,3332.7,3332.2,3.50839]
[1735596304740,3.91351143,3332.7,3332.3,0.30058]
[1735596305041,2.0796,3332.8,3332.3,0.30058]
[1735596305235,10.2874,3332.8,3331.9,3.20723522]
[1735596305556,3.50836,3332.6,3331.9,3.20723522]
[1735596306040,0.30057,3332.5,3331.9,3.20723522]
[1735596306235,3.2078,3332.2,3331.4,3.20723522]
[1735596306441,3.2078,3332.2,3330.5,0.75187]
[1735596306442,0.30064,3331.7,3330.9,3.2078]
[1735596306639,2.0138,3331.6,3330.9,3.2078]
[1735596306836,0.30068,3331.2,3330.9,3.2078]
[1735596307133,3.2078,3331.3,3330.9,3.2078]
[1735596307340,3.2078,3331.3,3329.9,0.752]
[1735596307341,0.30069,3331.2,3329.8,3.5086]
[1735596307547,3.2078,3330.5,3329.6,3.2078]
[1735596307732,3.2078,3330.5,3329.8,0.30081]
[1735596307733,0.30076,3330.4,3329.8,0.30081]
[1735596307938,0.75171,3331.3,3329.8,0.30081]
[1735596307939,4.919,3333.6,3330.3,3.2078]
[1735596308239,3.2078,3333.2,3332.0,6.41503522]
[1735596308438,4.919,3333.6,3332.5,0.30056]
[1735596308439,3.2078,3333.6,3332.5,0.30056]
[1735596308746,3.2078,3333.2,3332.7,0.30054]
[1735596309062,3.2078,3333.2,3332.9,0.30053]
[1735596309544,3.2078,3333.2,3332.5,3.20723522]
[1735596309740,3.2078,3333.2,3333.1,0.30051]
[1735596310851,3.2078,3333.2,3332.5,3.20723522]
[1735596310852,3.2078,3333.8,3333.2,0.3005]
[1735596311051,3.50825,3333.8,3333.1,0.30051]
[1735596311253,3.50825,3333.8,3332.5,3.20723522]
[1735596311254,8.50825,3333.8,3333.2,0.3005]
[1735596311452,3.2078,3333.8,3333.7,0.30046]
[1735596311652,3.2078,3333.8,3332.8,3.2078]
[1735596311653,3.2078,3333.8,3333.0,3.20723522]
[1735596311854,8.2078,3333.8,3333.4,0.30048]
[1735596312156,3.2078,3333.8,3333.4,0.30048]
[1735596312356,3.2078,3333.8,3333.5,0.30047]
[1735596312557,3.2078,3333.8,3333.0,3.20723522]
[1735596313060,3.2078,3333.8,3333.5,0.30048]
[1735596313354,3.2078,3333.8,3333.0,3.20723522]
[1735596313355,2.1033,3334.0,3333.7,0.30046]
[1735596313661,2.1033,3334.0,3332.5,0.7514]
[1735596313662,3.2078,3334.3,3333.6,3.2078]
[1735596313860,2.0138,3334.4,3334.2,0.30041]
[1735596314360,2.0138,3334.4,3333.6,3.2078]
[1735596314361,2.1654,3335.1,3334.0,3.2078]
[1735596314771,7.1654,3335.1,3334.3,0.3004]
[1735596314953,7.1654,3335.1,3334.0,6.41503522]
[1735596314954,7.46574,3335.1,3334.0,6.41503522]
[1735596315153,7.1654,3335.1,3334.0,6.41503522]
[1735596315554,0.30034,3335.0,3334.4,0.30039]
[1735596315863,3.2078,3334.6,3334.0,3.2078]
[1735596316063,7.1654,3335.1,3334.7,0.30037]
[1735596316064,3.2078,3335.0,3334.7,0.30037]
[1735596316364,3.2078,3335.0,3334.8,0.30035]
[1735596316558,3.2078,3335.0,3334.6,0.30037]
[1735596316756,3.2078,3335.0,3334.1,3.2078]
[1735596316954,3.2078,3335.0,3334.7,0.30036]
[1735596317282,3.2078,3335.0,3334.1,3.2078]
[1735596317283,0.00372369,3334.3,3334.1,3.50822]
[1735596317563,0.00372369,3334.3,3334.2,0.30041]
[1735596318258,0.00372369,3334.3,3334.1,3.2078]
[1735596318665,0.00372369,3334.3,3334.2,0.30041]
[1735596318958,0.00372369,3334.3,3333.6,3.2078]
[1735596319362,0.00372369,3334.3,3333.9,0.30044]
[1735596319565,0.00372369,3334.3,3333.6,3.2078]
[1735596320060,0.00372369,3334.3,3334.0,0.30043]
[1735596320260,0.00372369,3334.3,3334.0,3.20723522]
[1735596320455,0.00372369,3334.3,3334.2,0.30041]
[1735596321257,0.00372369,3334.3,3334.1,3.2078]
[1735596321457,0.00372369,3334.3,3334.0,3.20723522]
[1735596321866,0.00372369,3334.3,3334.0,3.50765522]
[1735596322565,0.00372369,3334.3,3334.0,3.20723522]
[1735596322961,0.00372369,3334.3,3334.2,3.2078]
[1735596324060,0.00372369,3334.3,3334.0,3.20723522]
[1735596324061,0.00372369,3334.3,3334.1,3.2078]
[1735596324260,0.00372369,3334.3,3334.1,3.50822]
[1735596324464,0.00372369,3334.3,3334.1,3.2078]
[1735596325772,0.00372369,3334.3,3334.0,3.20723522]
[1735596326463,0.00372369,3334.3,3333.7,3.2078]
[1735596326665,5.00372369,3334.3,3333.7,3.2078]
[1735596326871,0.30044,3333.9,3333.5,3.20723522]
[1735596327068,3.2078,3334.0,3333.2,3.2078]
[1735596327271,0.30047,3333.6,3333.0,3.20723522]
[1735596327469,8.2078,3334.0,3333.0,3.50775522]
[1735596327470,0.30046,3333.7,3333.0,3.50775522]
[1735596327664,3.2078,3333.6,3333.0,3.50775522]
[1735596327970,2.1819,3334.2,3333.2,3.2078]
[1735596328164,2.1819,3334.2,3333.7,3.2078]
[1735596328569,2.1819,3334.2,3333.9,0.30044]
[1735596328871,2.1819,3334.2,3333.8,0.30045]
[1735596329167,0.30043,3334.1,3333.7,3.2078]
[1735596329367,2.1819,3334.2,3333.8,0.30045]
[1735596329565,0.30045,3333.8,3333.5,3.20723522]
[1735596329772,3.2078,3334.0,3333.5,3.20723522]
[1735596329967,0.30046,3333.7,3333.2,3.5083]
[1735596330271,0.30045,3333.8,3333.3,0.30049]
[1735596330566,8.2078,3334.0,3332.7,0.30054]
[1735596330567,0.30051,3333.2,3332.7,0.30054]
[1735596330773,3.2078,3333.6,3332.6,5.3131]
[1735596330972,3.2078,3333.1,3332.8,0.30053]
[1735596331172,3.2078,3333.1,3332.6,3.2078]
[1735596331173,3.2078,3333.1,3332.7,0.30055]
[1735596332072,3.2078,3333.5,3332.6,3.2078]
[1735596332263,1.9833,3333.7,3332.2,0.30059]
[1735596332264,0.30056,3332.6,3332.2,0.30059]
[1735596332469,3.2078,3333.0,3332.1,3.2078]
[1735596332970,3.2078,3332.6,3332.1,3.5084]
[1735596333176,3.50836,3332.6,3332.1,3.5084]
[1735596333473,2.13,3332.9,3332.7,0.30054]
[1735596333673,2.13,3332.9,3332.1,3.2078]
[1735596333874,2.13,3332.9,3332.5,0.30056]
[1735596334073,2.13,3332.9,3332.1,3.2078]
[1735596334469,3.2078,3332.7,3332.1,3.2078]
[1735596334665,0.30059,3332.3,3332.1,3.2078]
[1735596334874,0.30058,3332.4,3332.1,3.2078]
[1735596335172,8.2078,3332.7,3332.1,3.2078]
[1735596335373,0.30057,3332.5,3332.1,3.2078]
[1735596335673,0.30056,3332.6,3332.1,3.5084]
[1735596336270,3.2078,3332.7,3332.1,3.2078]
[1735596336471,0.30058,3332.4,3332.1,3.2078]
[1735596337071,0.30057,3332.5,3332.1,3.5084]
[1735596337266,3.2078,3332.7,3332.1,3.5084]
[1735596337267,3.2078,3332.7,3332.1,3.2078]
[1735596337476,3.2078,3332.7,3332.5,0.30056]
[1735596337776,3.2078,3332.7,3332.6,0.30056]
[1735596338678,3.2078,3332.7,3332.1,3.2078]
[1735596339177,3.2078,3332.7,3332.4,0.30057]
[1735596340272,3.2078,3332.7,3332.1,3.2078]
[1735596340672,3.2078,3332.7,3332.1,3.5084]
[1735596340673,0.30056,3332.6,3332.1,3.5084]
[1735596340981,3.2078,3332.7,3332.1,3.5084]
[1735596341276,3.2078,3332.7,3332.1,3.2078]
[1735596341480,3.2078,3332.7,3332.6,0.30056]
[1735596341674,3.2078,3332.7,3332.1,3.2078]
[1735596341977,3.2078,3332.7,3332.5,0.30056]
[1735596342178,3.2078,3332.7,3332.1,3.2078]
[1735596342179,3.2078,3332.7,3332.6,0.30056]
[1735596342368,3.2078,3332.7,3332.5,0.30057]
[1735596342569,3.50835,3332.7,3332.3,0.30058]
[1735596342771,3.50835,3332.7,3332.1,3.2078]
[1735596342772,3.2078,3332.7,3332.1,3.2078]
[1735596342967,0.30056,3332.6,3332.2,0.30059]
[1735596343574,3.2078,3332.7,3331.5,0.75163]
[1735596343575,3.2078,3332.7,3331.7,3.2078]
[1735596343873,8.2078,3332.7,3331.7,3.2078]
[1735596344078,8.2078,3332.7,3331.6,3.2078]
[1735596344302,3.2078,3332.3,3331.6,3.2078]
[1735596344778,1.545,3333.1,3331.6,3.2078]
[1735596344779,0.30045,3333.9,3333.5,0.30047]
[1735596344977,3.2078,3334.1,3333.3,3.2078]
[1735596345176,2.07352369,3334.3,3333.7,3.2078]
[1735596345468,2.07352369,3334.3,3333.4,0.75122]
[1735596345469,2.07352369,3334.3,3334.2,0.30041]
[1735596345676,2.07352369,3334.3,3334.1,3.2078]
[1735596345976,2.07352369,3334.3,3334.1,3.50822]
[1735596346176,2.07352369,3334.3,3334.2,0.30041]
[1735596347074,2.37393369,3334.3,3334.1,3.2078]
[1735596347280,2.07352369,3334.3,3333.7,3.2078]
[1735596347472,2.37393369,3334.3,3334.1,0.30041]
[1735596347772,2.07352369,3334.3,3333.7,3.2078]
[1735596348369,2.07352369,3334.3,3333.9,0.30043]
[1735596348571,0.30042,3334.1,3333.7,3.2078]
[1735596348777,0.30043,3334.0,3333.7,0.30046]
[1735596348979,0.30044,3334.0,3333.7,0.30045]
[1735596349281,5.28132369,3334.3,3333.6,2.2007]
[1735596349678,0.30041,3334.2,3333.9,0.30044]
[1735596350068,0.7511,3334.0,3331.9,3.2078]
[1735596350275,0.7511,3334.0,3331.8,7.06239883]
[1735596350276,3.2078,3332.9,3332.1,2.0651]
[1735596350582,3.2078,3332.5,3332.4,0.30057]
[1735596350774,3.2078,3332.5,3332.2,0.30059]
[1735596351182,3.2078,3332.5,3332.3,0.30058]
[1735596351388,3.2078,3332.5,3332.1,2.0651]
[1735596351675,3.50837,3332.5,3332.1,2.0651]
[1735596351881,3.50837,3332.5,3332.2,0.30059]
[1735596352580,0.30058,3332.4,3332.2,0.30059]
[1735596352782,0.30059,3332.2,3332.1,2.0651]
[1735596352981,0.30058,3332.4,3332.1,2.0651]
[1735596353282,0.30059,3332.3,3332.1,2.0651]
[1735596354474,3.2078,3332.5,3332.1,2.0651]
[1735596354675,0.30059,3332.3,3332.1,2.0651]
[1735596355683,3.2078,3332.5,3332.1,2.0651]
[1735596355884,0.30059,3332.2,3332.1,2.0651]
[1735596356084,3.2078,3332.5,3332.1,2.0651]
[1735596356379,0.30059,3332.3,3332.1,2.0651]
[1735596356578,3.2078,3332.5,3332.1,2.0651]
[1735596356778,0.30059,3332.3,3332.1,2.0651]
[1735596357985,3.2078,3332.5,3332.1,2.0651]
[1735596358389,2.26730629,3333.2,3332.3,3.2078]
[1735596358390,3.2078,3333.1,3332.3,3.2078]
[1735596358584,3.2078,3333.1,3332.7,0.30054]
[1735596358890,3.2078,3333.1,3332.4,40.8]
[1735596359082,3.2078,3333.1,3332.3,3.2078]
[1735596359387,3.2078,3332.7,3332.1,2.0651]
[1735596359780,0.30056,3332.6,3332.1,2.0651]
[1735596359980,0.30059,3332.3,3332.1,2.0651]
[1735596360880,3.2078,3332.7,3332.1,2.0651]
[1735596361086,0.3006,3332.2,3331.8,0.30063]
[1735596361687,3.2078,3332.3,3331.6,3.2078]
[1735596361884,3.2078,3331.8,3330.7,4.7508]
[1735596362082,3.2078,3331.8,3330.9,2.1304]
[1735596362083,0.30068,3331.3,3330.9,2.1304]
[1735596362284,3.2078,3331.4,3330.9,2.1304]
[1735596362483,0.30069,3331.2,3330.9,2.1304]
[1735596362785,3.2078,3331.4,3330.9,2.1304]
[1735596363103,0.3007,3331.1,3330.9,2.1304]
[1735596363285,0.30069,3331.1,3330.9,2.1304]
[1735596363488,3.2078,3331.4,3330.9,2.1304]
[1735596363691,3.2078,3331.0,3330.3,44.0078]
[1735596363992,0.7516,3331.7,3330.0,2.1304]
[1735596363993,3.2078,3330.6,3330.0,2.1304]
[1735596364287,0.30078,3330.1,3329.5,40.8]
[1735596364485,3.2078,3330.2,3329.5,40.8]
[1735596364787,3.2078,3330.2,3329.6,0.30082]
[1735596365394,3.50858,3330.2,3329.6,0.30082]
[1735596365583,3.2078,3330.2,3329.5,40.8]
[1735596365795,0.30084,3329.5,3329.4,2.0971]
[1735596365982,0.30086,3329.3,3328.7,3.2078]
[1735596366205,3.2078,3329.3,3328.7,3.2078]
[1735596366397,3.2078,3329.3,3328.8,0.3009]
[1735596366686,3.2078,3329.3,3328.7,3.2078]
[1735596366885,3.2078,3329.3,3328.7,3.5087]
[1735596367081,3.2078,3329.3,3328.8,0.30089]
[1735596367282,3.2078,3329.3,3328.8,0.3009]
[1735596367488,3.2078,3329.3,3328.7,3.2078]
[1735596367689,0.30082,3329.7,3329.0,0.30088]
[1735596368196,3.2078,3329.9,3329.1,3.2078]
[1735596368697,0.30082,3329.7,3329.1,3.50867]
[1735596368900,0.30082,3329.7,3329.2,40.8]
[1735596369386,3.2078,3329.4,3328.5,7.3317]
[1735596369594,3.2078,3329.4,3328.6,0.30092]
[1735596369784,0.30089,3329.0,3328.5,7.3317]
[1735596369985,0.30088,3329.1,3328.5,7.63262]
[1735596370187,3.2078,3329.4,3328.5,7.3317]
[1735596370389,0.30081,3329.8,3329.2,0.30086]
[1735596370797,3.2078,3329.9,3328.9,3.2078]
[1735596370992,3.2078,3329.5,3328.5,7.3317]
[1735596371290,0.30088,3329.0,3328.5,7.63262]
[1735596371493,0.30088,3329.1,3328.5,7.63262]
[1735596371787,3.2078,3329.0,3328.5,5.3049]
[1735596371991,0.30091,3328.8,3328.5,2.0971]
[1735596372192,3.2078,3329.0,3328.5,2.0971]
[1735596372595,0.3009,3328.9,3328.5,2.0971]
[1735596373392,3.2078,3329.0,3328.5,2.0971]
[1735596373589,3.2078,3329.0,3328.0,40.8]
[1735596373788,0.30095,3328.2,3327.6,0.30101]
[1735596373982,3.2078,3328.5,3327.5,3.2078]
[1735596373983,3.2078,3328.1,3327.5,3.2078]
[1735596374385,2.0323,3328.4,3327.5,3.2078]
[1735596374583,2.33324,3328.4,3327.7,0.30099]
[1735596374888,2.33324,3328.4,3327.8,0.30099]
[1735596375288,3.2078,3328.1,3327.5,3.2078]
[1735596375495,3.2078,3328.1,3327.6,0.301]
[1735596375693,0.30098,3328.0,3327.5,3.2078]
[1735596375892,3.50876,3328.1,3327.5,3.50881]
[1735596376195,0.30097,3328.0,3327.5,3.2078]
[1735596376393,3.2078,3328.1,3327.5,3.2078]
[1735596376590,3.2078,3327.6,3326.7,0.30109]
[1735596376793,3.2078,3327.6,3326.6,3.2078]
[1735596376991,3.2078,3326.9,3326.4,2.44541]
[1735596377186,0.30105,3327.2,3326.6,0.3011]
[1735596377491,3.2078,3327.3,3326.8,0.30108]
[1735596377698,3.2078,3327.3,3326.4,2.1443]
[1735596377989,3.50884,3327.3,3326.7,0.30108]
[1735596378188,3.2078,3327.3,3326.6,0.3011]
[1735596378388,0.30105,3327.2,3326.7,0.30109]
[1735596378588,0.30105,3327.2,3326.6,0.30109]
[1735596378990,0.30106,3327.1,3326.6,0.30109]
[1735596379189,3.2078,3327.3,3326.1,5.4112]
[1735596379190,3.50889,3326.8,3326.3,0.30112]
[1735596379595,3.2078,3326.8,3326.1,5.4112]
[1735596379789,3.50888,3326.8,3326.4,0.30111]
[1735596380095,3.2078,3326.8,3326.1,5.4112]
[1735596380297,3.50889,3326.8,3326.4,0.30111]
[1735596380488,3.2078,3326.8,3326.5,0.30111]
[1735596380889,3.2078,3326.8,3326.1,5.4112]
[1735596381089,3.2078,3326.8,3326.5,0.30111]
[1735596381491,3.2078,3326.8,3326.7,0.30109]
[1735596382090,3.2078,3326.8,3326.7,41.10109]
[1735596382496,0.30112,3326.4,3326.1,3.2078]
[1735596382799,3.2078,3326.8,3326.3,0.30113]
[1735596383000,0.3011,3326.6,3326.2,0.30113]
[1735596383205,3.2078,3326.8,3326.1,3.2078]
[1735596383408,0.30111,3326.5,3326.2,0.30113]
[1735596383597,0.30112,3326.4,3326.1,3.50894]
[1735596383800,0.30111,3326.5,3326.2,0.30113]
[1735596384000,3.2078,3326.8,3326.1,3.2078]
[1735596384697,3.2078,3326.8,3326.3,0.30112]
[1735596384906,2.1755,3327.1,3326.9,0.30106]
[1735596385107,5.13048644,3327.1,3326.1,3.2078]
[1735596385308,3.2078,3326.7,3326.6,0.3011]
[1735596385509,3.2078,3326.7,3326.5,0.3011]
[1735596385809,3.2078,3326.7,3326.6,0.3011]
[1735596386418,3.2078,3327.7,3327.6,0.301]
[1735596386702,2.0954,3328.0,3327.9,0.30098]
[1735596386902,3.2078,3328.1,3327.3,3.2078]
[1735596387115,4.2331,3328.5,3327.3,3.2078]
[1735596387116,3.2078,3328.5,3327.7,3.2078]
[1735596387402,3.50865,3329.4,3329.0,0.30087]
[1735596387602,3.2078,3329.4,3328.5,3.2078]
[1735596387802,3.2078,3329.0,3327.9,5.2606]
[1735596388003,3.2078,3329.0,3328.1,0.75242]
[1735596388205,2.0954,3329.9,3328.7,3.2078]
[1735596388404,2.0954,3329.9,3329.1,3.2078]
[1735596388611,3.50858,3330.2,3329.8,0.30081]
[1735596389003,3.50858,3330.2,3329.1,3.2078]
[1735596389004,3.2078,3330.2,3330.1,0.30078]
[1735596389204,2.1183,3330.7,3329.6,3.2078]
[1735596389205,3.2078,3330.5,3329.6,3.2078]
[1735596389602,3.50851,3330.9,3329.7,0.75205]
[1735596389816,0.30074,3330.6,3330.2,0.30077]
[1735596390206,0.30077,3330.3,3329.8,0.30081]
[1735596390508,3.2078,3330.5,3329.2,1.545]
[1735596390704,0.75173,3331.2,3329.2,1.545]
[1735596390705,0.30079,3330.0,3329.5,0.30083]
[1735596391013,3.2078,3330.1,3329.5,0.30083]
[1735596391398,8.2078,3330.1,3329.1,5.3791]
[1735596391614,8.2078,3330.1,3328.5,3.95918899]
[1735596391615,3.2078,3329.7,3329.3,0.30085]
[1735596391912,3.2078,3329.7,3329.2,0.30086]
[1735596392110,8.2078,3329.7,3328.3,5.4158]
[1735596392303,3.2078,3329.3,3328.4,0.30093]
[1735596392504,3.50866,3329.3,3328.5,0.30092]
[1735596392709,3.50864,3329.5,3328.8,0.3009]
[1735596392904,3.50864,3329.5,3328.3,10.4158]
[1735596392905,3.2078,3329.5,3328.3,10.4158]
[1735596393111,3.2078,3329.5,3329.1,0.30087]
[1735596393416,3.2078,3330.0,3328.8,3.2078]
[1735596393611,3.50859,3330.0,3329.3,0.30085]
[1735596393803,3.50859,3330.0,3328.9,2.021]
[1735596394009,3.50859,3330.0,3329.4,0.30084]
[1735596394704,3.50859,3330.0,3329.2,3.2078]
[1735596394705,3.2078,3330.0,3329.5,0.30083]
[1735596395203,8.2078,3330.0,3329.3,0.30085]
[1735596395408,0.30081,3329.8,3329.3,0.30085]
[1735596396215,3.2078,3330.0,3329.2,3.2078]
[1735596396415,3.2078,3330.0,3328.9,2.021]
[1735596396616,3.2078,3329.6,3329.2,0.30086]
[1735596396818,3.2078,3329.6,3329.1,0.30087]
[1735596397014,3.2078,3329.6,3328.8,3.2078]
[1735596397317,3.50863,3329.6,3329.1,0.30087]
[1735596397503,3.50863,3329.6,3329.0,0.30087]
[1735596398914,3.50863,3329.6,3328.8,3.2078]
[1735596398915,3.2078,3329.6,3329.1,0.30087]
[1735596399114,3.2078,3329.6,3329.1,0.30086]
[1735596399707,3.2078,3330.1,3329.2,3.2078]
[1735596399913,3.2078,3330.1,3330.0,0.30079]
[1735596400211,3.2078,3330.9,3329.7,44.0078]
[1735596400412,5.3215,3331.4,3330.5,3.2078]
[1735596400911,5.3215,3331.4,3330.9,0.3007]
[1735596401120,5.3215,3331.4,3330.0,3.20687899]
[1735596401121,3.2078,3331.0,3330.0,3.2078]
[1735596401614,3.5085,3331.0,3330.0,3.2078]
[1735596401819,3.2078,3331.0,3329.9,40.8]
[1735596402012,3.2078,3331.0,3330.2,0.30077]
[1735596402212,0.30071,3330.9,3329.9,44.0078]
[1735596402528,0.30071,3330.9,3330.3,0.30076]
[1735596403107,3.2078,3331.0,3329.9,3.2078]
[1735596403511,0.30072,3330.9,3329.9,3.2078]
[1735596403710,0.30072,3330.9,3330.3,0.30076]
[1735596403915,3.2078,3331.0,3330.3,0.30076]
[1735596403916,0.30072,3330.8,3330.3,0.30076]
[1735596404221,0.30073,3330.8,3330.3,0.30076]
[1735596404418,0.30073,3330.8,3329.9,3.2078]
[1735596404621,0.30073,3330.8,3330.2,0.30077]
[1735596405015,0.30073,3330.7,3330.2,0.30077]
[1735596405222,3.2078,3331.0,3329.9,3.2078]
[1735596405523,0.24249619,3332.2,3329.9,3.2078]
[1735596405524,0.30059,3332.3,3330.8,1.80432]
[1735596405709,2.2470381,3332.5,3332.2,0.30058]
[1735596405710,5.4548381,3332.5,3332.2,0.30058]
[1735596405909,5.4548381,3332.5,3331.6,3.95943]
[1735596405910,5.4548381,3332.5,3332.4,0.30057]
[1735596406115,2.2470381,3332.5,3332.4,0.30057]
[1735596406512,2.2470381,3332.5,3332.0,3.2078]
[1735596406513,2.2470381,3332.5,3331.4,3.2078]
[1735596406723,2.2470381,3332.5,3332.1,0.30059]
[1735596407018,2.2470381,3332.5,3331.8,1.542]
[1735596407019,3.2078,3332.5,3331.8,1.542]
[1735596407517,3.2078,3332.9,3332.3,0.30058]
[1735596407920,0.30054,3332.8,3331.8,4.7498]
[1735596408318,3.2078,3332.9,3331.8,4.7498]
[1735596408816,0.30054,3332.8,3332.1,0.3006]
[1735596409018,0.30055,3332.7,3332.1,0.3006]
[1735596409430,3.20687899,3332.2,3330.3,3.2078]
[1735596409620,3.2078,3331.8,3331.3,0.30067]
[1735596409815,3.2078,3331.8,3330.8,3.20687899]
[1735596410013,3.2078,3331.8,3330.9,4.2317]
[1735596410220,3.2078,3331.8,3331.2,0.30068]
[1735596411330,3.2078,3331.8,3331.3,0.30067]
[1735596411634,3.2078,3331.9,3331.7,0.30063]
[1735596411821,3.2078,3331.9,3331.5,0.30065]
[1735596412019,1.542,3333.3,3331.5,0.30065]
[1735596412020,3.2078,3333.5,3331.7,3.20687899]
[1735596412221,6.57835715,3334.0,3333.8,0.30045]
[1735596412222,3.37055715,3334.0,3333.8,0.30045]
[1735596412427,3.37055715,3334.0,3333.3,3.2078]
[1735596412620,3.37055715,3334.0,3333.8,0.30045]
[1735596413327,3.2078,3335.5,3333.8,5.0]
[1735596413526,3.2078,3335.5,3334.7,3.2078]
[1735596413718,3.0016,3335.4,3334.7,3.2078]
[1735596413928,3.0016,3335.2,3334.7,3.2078]
[1735596414126,3.2078,3335.5,3335.0,0.30033]
[1735596414427,5.45665363,3336.3,3335.5,0.30029]
[1735596414632,3.0016,3335.5,3334.6,2.0359]
[1735596414925,3.0016,3336.0,3334.9,3.2078]
[1735596415124,3.0016,3336.0,3335.3,0.30031]
[1735596415326,3.0016,3335.9,3335.1,0.30033]
[1735596415942,3.0016,3335.9,3334.9,3.2078]
[1735596415943,3.0016,3335.5,3334.9,3.2078]
[1735596416333,3.0016,3335.5,3334.9,3.50815]
[1735596416528,3.0016,3335.4,3334.9,3.2078]
[1735596416837,3.2078,3336.0,3333.9,2.2262]
[1735596416838,3.0016,3335.0,3334.5,3.2078]
[1735596417019,3.0016,3334.8,3334.0,3.2078]
[1735596417226,3.0016,3334.4,3334.0,3.2078]
[1735596417421,3.0016,3334.4,3333.9,1.84144]
[1735596417628,3.0016,3334.4,3333.8,0.30045]
[1735596418939,3.0016,3334.4,3333.9,0.30044]
[1735596419138,3.0016,3334.4,3333.8,0.30045]
[1735596419535,3.0016,3334.4,3333.1,3.50687899]
[1735596419536,3.0016,3333.9,3333.4,0.30048]
[1735596420137,2.1216,3334.3,3333.1,3.2078]
[1735596420338,5.1232,3334.3,3333.1,8.2078]
[1735596420537,5.1232,3334.3,3333.7,0.30045]
[1735596420740,5.1232,3334.3,3333.1,3.2078]
[1735596420932,5.1232,3334.3,3333.1,8.2078]
[1735596421162,5.1232,3334.3,3333.5,0.30047]
[1735596421340,5.1232,3334.3,3333.1,8.2078]
[1735596421538,3.0016,3333.8,3333.1,3.2078]
[1735596421740,3.0016,3334.1,3333.1,8.2078]
[1735596421940,3.0016,3334.0,3333.1,8.2078]
[1735596422135,3.0016,3334.0,3333.6,0.30047]
[1735596422841,3.0016,3333.7,3333.5,3.2078]
[1735596423042,2.1216,3334.3,3333.5,3.2078]
[1735596423043,3.0016,3333.8,3333.5,3.2078]
[1735596423244,3.0016,3333.9,3333.7,0.30046]
[1735596423442,3.0016,3333.9,3333.5,3.2078]
[1735596423845,3.0016,3333.6,3333.1,40.8]
[1735596424143,3.2078,3335.9,3333.6,3.1637226]
[1735596424349,3.2078,3335.9,3335.7,0.30027]
[1735596424647,3.20687899,3337.5,3335.7,0.30027]
[1735596424648,3.2078,3338.1,3336.1,0.5]
[1735596424841,3.2078,3337.5,3337.2,3.20687899]
[1735596425142,1.90947,3337.3,3336.7,3.20687899]
[1735596425348,3.2078,3337.9,3336.6,3.508]
[1735596425643,1.90947,3337.1,3337.0,3.2078]
[1735596425834,3.2078,3337.7,3337.0,3.2078]
[1735596426034,1.90947,3337.1,3337.0,3.2078]
[1735596426440,1.90947,3337.1,3336.2,3.2078]
[1735596426645,1.90947,3336.3,3336.2,3.2078]
[1735596427839,1.90947,3336.3,3335.8,3.2078]
[1735596428043,3.2078,3336.4,3335.8,3.2078]
[1735596428247,1.90947,3335.9,3335.8,3.2078]
[1735596428942,3.2078,3338.1,3335.8,9.7458]
[1735596429145,1.90947,3337.2,3337.0,0.30016]
[1735596429344,1.90947,3337.2,3336.9,3.2078]
[1735596429534,1.90947,3337.2,3337.1,0.30015]
[1735596430456,1.90947,3337.2,3336.9,44.0078]
[1735596430644,1.90947,3337.0,3336.9,44.30797]
[1735596431149,1.90947,3337.0,3336.9,3.2078]
[1735596431949,5.0,3337.0,3335.7,3.20687899]
[1735596432149,0.3002,3336.6,3335.7,3.20687899]
[1735596432348,3.2078,3336.7,3335.7,3.20687899]
[1735596432649,3.2078,3336.7,3335.6,3.2078]
[1735596432650,0.30026,3336.0,3335.6,3.2078]
[1735596432850,3.2078,3336.3,3335.6,3.2078]
[1735596433045,3.50803,3336.3,3335.6,3.2078]
[1735596433251,3.2078,3336.3,3335.6,3.2078]
[1735596433651,0.30025,3336.1,3335.6,3.2078]